[Event "Live Chess"]
[Site "Chess.com"]
[Date "2023.05.21"]
[Round "-"]
[White "wot-not"]
[Black "TheSmoulderingMaster"]
[Result "0-1"]
[WhiteElo "1534"]
[BlackElo "1664"]
[TimeControl "300"]
[EndTime "8:46:25 PDT"]
[Termination "TheSmoulderingMaster won by checkmate"]

1. e4 {[%clk 0:04:53.9]} 1... c5 {[%clk 0:04:58.8]} 2. f4 {[%clk 0:04:53.5]}
2... d5 {[%clk 0:04:57.3]} 3. e5 {[%clk 0:04:52.1]} 3... Nc6 {[%clk 0:04:56.1]}
4. Nf3 {[%clk 0:04:51.9]} 4... Bg4 {[%clk 0:04:55]} 5. d4 {[%clk 0:04:51.6]}
5... cxd4 {[%clk 0:04:53.8]} 6. Bd3 {[%clk 0:04:50.7]} 6... e6 {[%clk
0:04:52.5]} 7. O-O {[%clk 0:04:49.8]} 7... Bc5 {[%clk 0:04:51]} 8. Bd2 {[%clk
0:04:48.9]} 8... Nge7 {[%clk 0:04:50.1]} 9. Be1 {[%clk 0:04:47.9]} 9... O-O
{[%clk 0:04:49]} 10. Bh4 {[%clk 0:04:45.9]} 10... Qb6 {[%clk 0:04:44.9]} 11.
Nbd2 {[%clk 0:04:44.3]} 11... Nf5 {[%clk 0:04:42.9]} 12. Bxf5 {[%clk 0:04:42.5]}
12... exf5 {[%clk 0:04:39.5]} 13. Kh1 {[%clk 0:04:42.2]} 13... Qxb2 {[%clk
0:04:37.1]} 14. Rb1 {[%clk 0:04:37.9]} 14... Qc3 {[%clk 0:04:34.5]} 15. Rxb7
{[%clk 0:04:36.4]} 15... d3 {[%clk 0:04:31]} 16. cxd3 {[%clk 0:04:33.7]} 16...
Qxd3 {[%clk 0:04:29.9]} 17. Qe1 {[%clk 0:04:32.6]} 17... Bb4 {[%clk 0:04:27.8]}
18. Qf2 {[%clk 0:04:19.4]} 18... a5 {[%clk 0:04:14.6]} 19. h3 {[%clk 0:04:18.5]}
19... Bxf3 {[%clk 0:04:12.8]} 20. Nxf3 {[%clk 0:04:16.3]} 20... Qe4 {[%clk
0:04:04.8]} 21. Qg3 {[%clk 0:04:10.5]} 21... Rfb8 {[%clk 0:03:45.6]} 22. Rxb8+
{[%clk 0:04:08.6]} 22... Rxb8 {[%clk 0:03:44.7]} 23. Bf6 {[%clk 0:04:03.7]}
23... g6 {[%clk 0:03:42.4]} 24. Qh4 {[%clk 0:03:56]} 24... Bf8 {[%clk
0:03:37.7]} 25. Ng5 {[%clk 0:03:54.6]} 25... h5 {[%clk 0:03:29.2]} 26. Nxe4
{[%clk 0:03:52.7]} 26... dxe4 {[%clk 0:03:28.6]} 27. Rc1 {[%clk 0:03:43.4]}
27... Nd4 {[%clk 0:03:26.1]} 28. Be7 {[%clk 0:03:38.9]} 28... Bg7 {[%clk
0:03:21.5]} 29. Bf6 {[%clk 0:03:36.7]} 29... Bf8 {[%clk 0:03:20.5]} 30. Be7
{[%clk 0:03:29.4]} 30... Bg7 {[%clk 0:03:19.4]} 31. Qe1 {[%clk 0:03:21.9]} 31...
Rb2 {[%clk 0:03:12.6]} 32. Qxa5 {[%clk 0:03:17.2]} 32... Ne2 {[%clk 0:03:09.1]}
33. Rc8+ {[%clk 0:03:15.4]} 33... Kh7 {[%clk 0:03:07.8]} 34. g4 {[%clk
0:02:59.7]} 34... Ng3+ {[%clk 0:03:05.2]} 35. Kg1 {[%clk 0:02:56.8]} 35... Ne2+
{[%clk 0:03:03.7]} 36. Kf1 {[%clk 0:02:56.1]} 36... Ng3+ {[%clk 0:03:02.9]} 37.
Ke1 {[%clk 0:02:55.5]} 37... fxg4 {[%clk 0:02:52.4]} 38. hxg4 {[%clk 0:02:54.5]}
38... h4 {[%clk 0:02:51.7]} 39. Bf6 {[%clk 0:02:46.4]} 39... h3 {[%clk
0:02:39.9]} 40. Bxg7 {[%clk 0:02:44.4]} 40... h2 {[%clk 0:02:39.3]} 41. Rh8+
{[%clk 0:02:28]} 41... Kxg7 {[%clk 0:02:36.7]} 42. Rxh2 {[%clk 0:02:26.7]} 42...
Rxh2 {[%clk 0:02:33.7]} 43. Qc7 {[%clk 0:02:18.9]} 43... e3 {[%clk 0:02:26.9]}
44. e6 {[%clk 0:02:18.2]} 44... Rh1# {[%clk 0:02:24.7]} 0-1

[Event "Live Chess"]
[Site "Chess.com"]
[Date "2023.05.21"]
[Round "-"]
[White "domrobson"]
[Black "davigator"]
[Result "0-1"]
[WhiteElo "1808"]
[BlackElo "2303"]
[TimeControl "300"]
[EndTime "8:46:26 PDT"]
[Termination "davigator won by resignation"]

1. d4 {[%clk 0:04:58.5]} 1... Nf6 {[%clk 0:04:58]} 2. c4 {[%clk 0:04:57.7]} 2...
e6 {[%clk 0:04:57]} 3. Nf3 {[%clk 0:04:56.1]} 3... Bb4+ {[%clk 0:04:56.5]} 4.
Bd2 {[%clk 0:04:55]} 4... a5 {[%clk 0:04:55.7]} 5. Nc3 {[%clk 0:04:50.4]} 5...
O-O {[%clk 0:04:52.6]} 6. Qc2 {[%clk 0:04:49.4]} 6... d5 {[%clk 0:04:51.2]} 7.
e3 {[%clk 0:04:48.4]} 7... c5 {[%clk 0:04:48.2]} 8. dxc5 {[%clk 0:04:44]} 8...
Nbd7 {[%clk 0:04:44.8]} 9. cxd5 {[%clk 0:04:42.2]} 9... exd5 {[%clk 0:04:43.6]}
10. Bd3 {[%clk 0:04:37.4]} 10... Nxc5 {[%clk 0:04:41.5]} 11. O-O {[%clk
0:04:31.8]} 11... Re8 {[%clk 0:04:37.1]} 12. Nd4 {[%clk 0:04:28.2]} 12... Bd7
{[%clk 0:04:32.5]} 13. a3 {[%clk 0:04:24.7]} 13... Bxc3 {[%clk 0:04:30.8]} 14.
Qxc3 {[%clk 0:04:23.7]} 14... Nce4 {[%clk 0:04:28.6]} 15. Qc2 {[%clk 0:04:20.6]}
15... Rc8 {[%clk 0:04:26.7]} 16. Qd1 {[%clk 0:04:17]} 16... Qb6 {[%clk 0:04:23]}
17. Bxe4 {[%clk 0:04:11.4]} 17... dxe4 {[%clk 0:04:17.9]} 18. Bc3 {[%clk
0:04:09.7]} 18... Nd5 {[%clk 0:04:16.3]} 19. Rc1 {[%clk 0:03:59.5]} 19... Nxc3
{[%clk 0:04:14.2]} 20. bxc3 {[%clk 0:03:57.5]} 20... Qc5 {[%clk 0:04:12.1]} 21.
Qb3 {[%clk 0:03:55.7]} 21... b5 {[%clk 0:04:09.3]} 22. Rfd1 {[%clk 0:03:52.9]}
22... Rc7 {[%clk 0:04:07.2]} 23. h3 {[%clk 0:03:44.2]} 23... g6 {[%clk
0:04:05.9]} 24. Rd2 {[%clk 0:03:41.8]} 24... Kg7 {[%clk 0:04:04.5]} 25. Rdc2
{[%clk 0:03:40.2]} 25... Rb8 {[%clk 0:03:59.1]} 26. Qb2 {[%clk 0:03:37.3]} 26...
Qc4 {[%clk 0:03:56.3]} 27. Qb3 {[%clk 0:03:29.7]} 27... h5 {[%clk 0:03:49.7]}
28. Qxc4 {[%clk 0:03:28]} 28... Rxc4 {[%clk 0:03:48.8]} 29. Rb1 {[%clk
0:03:23.2]} 29... Ra4 {[%clk 0:03:47.2]} 30. Rcb2 {[%clk 0:03:21.1]} 30... Rxa3
{[%clk 0:03:45.9]} 31. Nxb5 {[%clk 0:03:20.5]} 31... Bxb5 {[%clk 0:03:43.7]} 32.
Rxb5 {[%clk 0:03:19]} 32... Rc8 {[%clk 0:03:39.7]} 33. R5b3 {[%clk 0:03:16.8]}
33... Rxc3 {[%clk 0:03:38.1]} 34. Rxc3 {[%clk 0:03:15.1]} 34... Rxc3 {[%clk
0:03:36.5]} 35. Ra1 {[%clk 0:03:14.7]} 35... Rc5 {[%clk 0:03:34.5]} 36. Kf1
{[%clk 0:03:10.5]} 36... f5 {[%clk 0:03:33.9]} 37. Ke2 {[%clk 0:03:09.6]} 37...
Kf6 {[%clk 0:03:33.3]} 38. Kd2 {[%clk 0:03:09]} 38... Ke5 {[%clk 0:03:32.9]} 39.
Ra4 {[%clk 0:03:08.1]} 39... Kd5 {[%clk 0:03:32]} 40. f3 {[%clk 0:03:04.7]}
40... exf3 {[%clk 0:03:30.6]} 41. gxf3 {[%clk 0:03:03.6]} 41... Kc6 {[%clk
0:03:30.4]} 42. e4 {[%clk 0:03:01.2]} 42... Kb5 {[%clk 0:03:28.2]} 43. Ra1
{[%clk 0:02:59]} 43... fxe4 {[%clk 0:03:26.5]} 44. fxe4 {[%clk 0:02:57.5]} 44...
a4 {[%clk 0:03:26.2]} 45. Kd3 {[%clk 0:02:55.6]} 45... Kb4 {[%clk 0:03:23.6]}
46. Kd4 {[%clk 0:02:54.3]} 46... Rc4+ {[%clk 0:03:21.4]} 47. Kd5 {[%clk
0:02:52.3]} 47... Rc3 {[%clk 0:03:20.5]} 48. e5 {[%clk 0:02:51.3]} 48... Rxh3
{[%clk 0:03:18.5]} 49. e6 {[%clk 0:02:50.6]} 49... Re3 {[%clk 0:03:17.3]} 50.
Kd6 {[%clk 0:02:46.6]} 50... a3 {[%clk 0:03:16.2]} 51. e7 {[%clk 0:02:45.2]}
51... g5 {[%clk 0:03:14.1]} 52. Rb1+ {[%clk 0:02:33.4]} 52... Kc3 {[%clk
0:03:12.9]} 53. Rh1 {[%clk 0:02:30.4]} 53... a2 {[%clk 0:03:11.9]} 54. Rh3
{[%clk 0:02:28.9]} 54... Rxh3 {[%clk 0:03:08.2]} 55. e8=Q {[%clk 0:02:28.2]}
55... Rd3+ {[%clk 0:03:05.3]} 56. Kc7 {[%clk 0:02:25.9]} 56... a1=Q {[%clk
0:03:04.7]} 57. Qh8+ {[%clk 0:02:25]} 57... Rd4 {[%clk 0:03:04]} 0-1

[Event "Live Chess"]
[Site "Chess.com"]
[Date "2023.05.21"]
[Round "-"]
[White "KeithArkell"]
[Black "LordBenin"]
[Result "1-0"]
[WhiteElo "2460"]
[BlackElo "1388"]
[TimeControl "300"]
[EndTime "8:46:29 PDT"]
[Termination "KeithArkell won by resignation"]

1. d4 {[%clk 0:04:56.3]} 1... Nf6 {[%clk 0:04:57]} 2. Nf3 {[%clk 0:04:55.5]}
2... e6 {[%clk 0:04:54.5]} 3. c4 {[%clk 0:04:54.7]} 3... d5 {[%clk 0:04:52.7]}
4. cxd5 {[%clk 0:04:53.6]} 4... Nxd5 {[%clk 0:04:51.6]} 5. Nc3 {[%clk
0:04:52.6]} 5... Nxc3 {[%clk 0:04:49.1]} 6. bxc3 {[%clk 0:04:51.6]} 6... Be7
{[%clk 0:04:42.4]} 7. e4 {[%clk 0:04:50.8]} 7... b6 {[%clk 0:04:39.2]} 8. Bd3
{[%clk 0:04:49.1]} 8... Ba6 {[%clk 0:04:34.6]} 9. Bxa6 {[%clk 0:04:46.8]} 9...
Nxa6 {[%clk 0:04:33.6]} 10. Qa4+ {[%clk 0:04:45.9]} 10... Qd7 {[%clk 0:04:26.3]}
11. Qxa6 {[%clk 0:04:44.5]} 11... O-O {[%clk 0:04:25.3]} 12. O-O {[%clk
0:04:43.1]} 12... c5 {[%clk 0:04:19.1]} 13. a4 {[%clk 0:04:37.6]} 13... cxd4
{[%clk 0:04:17]} 14. cxd4 {[%clk 0:04:36.7]} 14... Rfd8 {[%clk 0:04:06.8]} 15.
Be3 {[%clk 0:04:35.3]} 15... h6 {[%clk 0:04:04.1]} 16. Rfd1 {[%clk 0:04:28.1]}
16... Qc6 {[%clk 0:03:57.8]} 17. Qd3 {[%clk 0:04:26.4]} 17... Rac8 {[%clk
0:03:54.1]} 18. d5 {[%clk 0:04:25.4]} 18... exd5 {[%clk 0:03:52.5]} 19. exd5
{[%clk 0:04:24.7]} 19... Qf6 {[%clk 0:03:30.6]} 20. a5 {[%clk 0:04:16.8]} 20...
bxa5 {[%clk 0:03:22.1]} 21. Rxa5 {[%clk 0:04:15.6]} 21... Rd7 {[%clk 0:03:08.1]}
22. h3 {[%clk 0:04:14]} 22... Rcd8 {[%clk 0:03:01.5]} 23. Bxa7 {[%clk
0:04:09.1]} 23... Bb4 {[%clk 0:02:57.6]} 24. Rb5 {[%clk 0:04:03.9]} 24... Bf8
{[%clk 0:02:50]} 25. Bb6 {[%clk 0:04:00.1]} 25... Qd6 {[%clk 0:02:38.7]} 26.
Bxd8 {[%clk 0:03:58]} 26... Rxd8 {[%clk 0:02:37]} 27. g3 {[%clk 0:03:55.3]}
27... Qa6 {[%clk 0:02:27.6]} 28. Rb3 {[%clk 0:03:52.9]} 28... Qa8 {[%clk
0:02:21.8]} 29. Kg2 {[%clk 0:03:51.8]} 29... Be7 {[%clk 0:02:12.5]} 30. Rb5
{[%clk 0:03:48.7]} 30... Bf6 {[%clk 0:02:10]} 31. Qc4 {[%clk 0:03:44.2]} 1-0

[Event "Live Chess"]
[Site "Chess.com"]
[Date "2023.05.21"]
[Round "-"]
[White "yeetpizza74"]
[Black "LanceMaster23"]
[Result "0-1"]
[WhiteElo "497"]
[BlackElo "1959"]
[TimeControl "300"]
[EndTime "8:46:31 PDT"]
[Termination "LanceMaster23 won by checkmate"]

1. e4 {[%clk 0:04:58.1]} 1... c5 {[%clk 0:04:55.2]} 2. Nf3 {[%clk 0:04:56]} 2...
Nc6 {[%clk 0:04:54.7]} 3. c3 {[%clk 0:04:53.9]} 3... d5 {[%clk 0:04:53.5]} 4.
exd5 {[%clk 0:04:51.2]} 4... Qxd5 {[%clk 0:04:53.4]} 5. d4 {[%clk 0:04:47.8]}
5... cxd4 {[%clk 0:04:53.1]} 6. cxd4 {[%clk 0:04:46.4]} 6... e6 {[%clk 0:04:52]}
7. Nc3 {[%clk 0:04:43.3]} 7... Qd8 {[%clk 0:04:50.5]} 8. d5 {[%clk 0:04:38.1]}
8... exd5 {[%clk 0:04:44]} 9. Nxd5 {[%clk 0:04:36.6]} 9... Be6 {[%clk
0:04:42.9]} 10. Bc4 {[%clk 0:04:31.6]} 10... Nf6 {[%clk 0:04:33]} 11. Nxf6+
{[%clk 0:04:25.6]} 11... Qxf6 {[%clk 0:04:29.7]} 12. Bxe6 {[%clk 0:04:24]} 12...
Qxe6+ {[%clk 0:04:28.1]} 13. Be3 {[%clk 0:04:21.3]} 13... Bb4+ {[%clk
0:04:25.7]} 14. Nd2 {[%clk 0:04:18.4]} 14... Rd8 {[%clk 0:04:12.3]} 15. O-O
{[%clk 0:04:13.6]} 15... O-O {[%clk 0:04:05.6]} 16. a3 {[%clk 0:04:02]} 16...
Ba5 {[%clk 0:03:16.4]} 17. b4 {[%clk 0:03:56.9]} 17... Bc7 {[%clk 0:03:14.1]}
18. Bxa7 {[%clk 0:03:51.8]} 18... Qd6 {[%clk 0:02:58]} 19. Bc5 {[%clk
0:03:47.4]} 19... Qxh2# {[%clk 0:02:55.5]} 0-1

[Event "Live Chess"]
[Site "Chess.com"]
[Date "2023.05.21"]
[Round "-"]
[White "Dhaydon19"]
[Black "Mikhail_Golubev"]
[Result "1-0"]
[WhiteElo "2692"]
[BlackElo "2421"]
[TimeControl "300"]
[EndTime "8:46:38 PDT"]
[Termination "Dhaydon19 won by resignation"]

1. d4 {[%clk 0:04:58.3]} 1... Nf6 {[%clk 0:04:54.1]} 2. Nf3 {[%clk 0:04:56.1]}
2... d6 {[%clk 0:04:47.7]} 3. g3 {[%clk 0:04:54.9]} 3... g6 {[%clk 0:04:40.3]}
4. Bg2 {[%clk 0:04:54.1]} 4... Bg7 {[%clk 0:04:39.8]} 5. O-O {[%clk 0:04:53.7]}
5... O-O {[%clk 0:04:37.6]} 6. c4 {[%clk 0:04:52.8]} 6... Nbd7 {[%clk
0:04:36.2]} 7. Nc3 {[%clk 0:04:52]} 7... e5 {[%clk 0:04:35]} 8. Qc2 {[%clk
0:04:51.2]} 8... exd4 {[%clk 0:04:21.9]} 9. Nxd4 {[%clk 0:04:50.1]} 9... Nb6
{[%clk 0:04:21.3]} 10. b3 {[%clk 0:04:48.5]} 10... c5 {[%clk 0:04:11.3]} 11. Nf3
{[%clk 0:04:43]} 11... Bf5 {[%clk 0:04:07.3]} 12. Qd1 {[%clk 0:04:40]} 12... d5
{[%clk 0:04:01.1]} 13. Ba3 {[%clk 0:04:34.3]} 13... d4 {[%clk 0:03:22.3]} 14.
Nb1 {[%clk 0:04:28.3]} 14... Qc7 {[%clk 0:03:13.3]} 15. Nbd2 {[%clk 0:04:25.7]}
15... Rfe8 {[%clk 0:03:07]} 16. Nh4 {[%clk 0:04:23]} 16... Bg4 {[%clk
0:02:59.5]} 17. Bf3 {[%clk 0:04:21.7]} 17... Bd7 {[%clk 0:02:55.2]} 18. Rc1
{[%clk 0:04:19.1]} 18... a5 {[%clk 0:02:50.3]} 19. Bg2 {[%clk 0:04:16.7]} 19...
Rad8 {[%clk 0:02:48.9]} 20. Re1 {[%clk 0:04:14.4]} 20... Nc8 {[%clk 0:02:43]}
21. Nhf3 {[%clk 0:04:09.5]} 21... b6 {[%clk 0:02:39.3]} 22. Bb2 {[%clk
0:04:06.4]} 22... Nd6 {[%clk 0:02:38.2]} 23. a3 {[%clk 0:04:04.5]} 23... Nf5
{[%clk 0:02:31.4]} 24. Qc2 {[%clk 0:04:01.9]} 24... Bc6 {[%clk 0:02:24.6]} 25.
b4 {[%clk 0:03:55.7]} 25... axb4 {[%clk 0:01:58.9]} 26. axb4 {[%clk 0:03:54.4]}
26... Rxe2 {[%clk 0:01:51.2]} 27. Rxe2 {[%clk 0:03:51.2]} 27... d3 {[%clk
0:01:50.5]} 28. Qd1 {[%clk 0:03:50.8]} 28... dxe2 {[%clk 0:01:50]} 29. Qxe2
{[%clk 0:03:50.1]} 29... cxb4 {[%clk 0:01:44.8]} 30. Nb3 {[%clk 0:03:40.3]}
30... Re8 {[%clk 0:01:37.1]} 31. Qd2 {[%clk 0:03:36.9]} 31... Ne4 {[%clk
0:01:31.4]} 32. Qc2 {[%clk 0:03:35.7]} 32... Bxb2 {[%clk 0:01:28.9]} 33. Qxb2
{[%clk 0:03:35.3]} 33... Nc3 {[%clk 0:01:28.3]} 34. Kh1 {[%clk 0:03:13.2]} 34...
Re2 {[%clk 0:01:19.1]} 35. Rc2 {[%clk 0:03:11.5]} 35... Nd1 {[%clk 0:01:15.9]}
36. Qc1 {[%clk 0:03:01.3]} 36... Nxf2+ {[%clk 0:01:12.5]} 37. Kg1 {[%clk
0:02:59.4]} 37... Nd3 {[%clk 0:01:10.6]} 38. Qd1 {[%clk 0:02:50.8]} 38... Bxf3
{[%clk 0:00:59.6]} 39. Rxe2 {[%clk 0:02:49.5]} 39... Bxe2 {[%clk 0:00:53]} 40.
Qxe2 {[%clk 0:02:48.7]} 40... Qxc4 {[%clk 0:00:52.3]} 41. Be4 {[%clk 0:02:43.5]}
41... Qc5+ {[%clk 0:00:45.9]} 42. Nxc5 {[%clk 0:02:42.1]} 42... Nxc5 {[%clk
0:00:44]} 43. Bxf5 {[%clk 0:02:40.3]} 1-0

[Event "Live Chess"]
[Site "Chess.com"]
[Date "2023.05.21"]
[Round "-"]
[White "HoarseyHorsey"]
[Black "ProfPoisson"]
[Result "1-0"]
[WhiteElo "1468"]
[BlackElo "1208"]
[TimeControl "300"]
[EndTime "8:46:42 PDT"]
[Termination "HoarseyHorsey won by resignation"]

1. d4 {[%clk 0:04:58.6]} 1... e6 {[%clk 0:04:57]} 2. c4 {[%clk 0:04:57.9]} 2...
f5 {[%clk 0:04:51.7]} 3. Nc3 {[%clk 0:04:52.9]} 3... Nf6 {[%clk 0:04:46.9]} 4.
Bg5 {[%clk 0:04:52.1]} 4... Bb4 {[%clk 0:04:44.4]} 5. e3 {[%clk 0:04:51]} 5...
Bxc3+ {[%clk 0:04:42.8]} 6. bxc3 {[%clk 0:04:49.9]} 6... O-O {[%clk 0:04:41.6]}
7. h4 {[%clk 0:04:47.2]} 7... Qe8 {[%clk 0:04:34.4]} 8. Bd3 {[%clk 0:04:38.3]}
8... b6 {[%clk 0:04:22.3]} 9. f3 {[%clk 0:04:36.4]} 9... d6 {[%clk 0:04:08.9]}
10. e4 {[%clk 0:04:30]} 10... fxe4 {[%clk 0:04:05.3]} 11. Bxe4 {[%clk
0:04:26.9]} 11... Nxe4 {[%clk 0:04:02.6]} 12. fxe4 {[%clk 0:04:26.8]} 12... Ba6
{[%clk 0:03:55.6]} 13. Qd3 {[%clk 0:04:14]} 13... Qf7 {[%clk 0:03:52.7]} 14.
O-O-O {[%clk 0:04:08.8]} 14... Nc6 {[%clk 0:03:44.9]} 15. Nf3 {[%clk 0:04:02.3]}
15... Na5 {[%clk 0:03:39.8]} 16. d5 {[%clk 0:03:40.6]} 16... Bxc4 {[%clk
0:03:36.5]} 17. Qd2 {[%clk 0:03:32.8]} 17... exd5 {[%clk 0:03:28.4]} 18. exd5
{[%clk 0:03:29.1]} 18... Qxd5 {[%clk 0:03:25.4]} 19. Qxd5+ {[%clk 0:03:26.8]}
19... Bxd5 {[%clk 0:03:21]} 20. Rxd5 {[%clk 0:03:25.6]} 20... Rae8 {[%clk
0:03:13.8]} 21. Re1 {[%clk 0:03:13.3]} 21... Rxe1+ {[%clk 0:03:11.3]} 22. Nxe1
{[%clk 0:03:11.8]} 22... Nc4 {[%clk 0:03:10.6]} 23. Rd1 {[%clk 0:02:52.5]} 23...
h6 {[%clk 0:03:01]} 24. Bd2 {[%clk 0:02:48.2]} 24... a5 {[%clk 0:02:43.2]} 25.
Nf3 {[%clk 0:02:46.8]} 25... c6 {[%clk 0:02:35.5]} 26. Re1 {[%clk 0:02:42.5]}
26... b5 {[%clk 0:02:33.2]} 27. Re6 {[%clk 0:02:31.6]} 27... c5 {[%clk
0:02:26.8]} 28. Re7 {[%clk 0:02:17.4]} 28... b4 {[%clk 0:02:24.3]} 29. Ra7
{[%clk 0:02:07.5]} 29... bxc3 {[%clk 0:02:08.7]} 30. Bxc3 {[%clk 0:02:03.6]}
30... Re8 {[%clk 0:02:01.9]} 31. Rxg7+ {[%clk 0:01:58.4]} 31... Kf8 {[%clk
0:01:59.8]} 32. Ra7 {[%clk 0:01:51.5]} 32... Re3 {[%clk 0:01:57]} 33. Bxa5
{[%clk 0:01:42.2]} 33... Nxa5 {[%clk 0:01:50.8]} 34. Rxa5 {[%clk 0:01:40.7]}
34... Re2 {[%clk 0:01:46.2]} 35. Ra6 {[%clk 0:01:35.5]} 35... Rxg2 {[%clk
0:01:41.4]} 36. Rxd6 {[%clk 0:01:34.1]} 36... Rxa2 {[%clk 0:01:39.5]} 37. Rc6
{[%clk 0:01:27.9]} 37... Ra3 {[%clk 0:01:34.8]} 38. Ne5 {[%clk 0:01:20.7]} 38...
Rc3+ {[%clk 0:01:19]} 39. Kd2 {[%clk 0:01:15.4]} 39... Rg3 {[%clk 0:01:11.2]}
40. Rxc5 {[%clk 0:01:10.1]} 40... Ke7 {[%clk 0:01:10.7]} 41. h5 {[%clk
0:00:46.8]} 41... Kd6 {[%clk 0:01:09]} 42. Ra5 {[%clk 0:00:44.4]} 42... Rg5
{[%clk 0:00:59.4]} 43. Nf7+ {[%clk 0:00:40.8]} 43... Ke6 {[%clk 0:00:55.4]} 44.
Nxg5+ {[%clk 0:00:39.8]} 44... hxg5 {[%clk 0:00:54.1]} 45. Rxg5 {[%clk
0:00:38.9]} 45... Kf6 {[%clk 0:00:53.6]} 46. Rg2 {[%clk 0:00:36.7]} 46... Kf7
{[%clk 0:00:50.6]} 47. h6 {[%clk 0:00:36.6]} 1-0

[Event "Live Chess"]
[Site "Chess.com"]
[Date "2023.05.21"]
[Round "-"]
[White "hturner40"]
[Black "Bob2pen"]
[Result "0-1"]
[WhiteElo "1786"]
[BlackElo "1889"]
[TimeControl "300"]
[EndTime "8:46:46 PDT"]
[Termination "Bob2pen won on time"]

1. Nf3 {[%clk 0:04:56.9]} 1... Nf6 {[%clk 0:04:57.4]} 2. g3 {[%clk 0:04:53.8]}
2... g6 {[%clk 0:04:56.3]} 3. Bg2 {[%clk 0:04:52.8]} 3... Bg7 {[%clk 0:04:55.4]}
4. O-O {[%clk 0:04:51.4]} 4... O-O {[%clk 0:04:54.3]} 5. c4 {[%clk 0:04:49.8]}
5... d5 {[%clk 0:04:50.1]} 6. cxd5 {[%clk 0:04:46.6]} 6... Nxd5 {[%clk
0:04:48.9]} 7. Nc3 {[%clk 0:04:45.6]} 7... Nxc3 {[%clk 0:04:46.4]} 8. dxc3
{[%clk 0:04:37.6]} 8... Nc6 {[%clk 0:04:43.4]} 9. Bf4 {[%clk 0:04:28]} 9... e5
{[%clk 0:04:37.9]} 10. Bg5 {[%clk 0:04:27]} 10... f6 {[%clk 0:04:33.5]} 11. Qb3+
{[%clk 0:04:24.7]} 11... Kh8 {[%clk 0:04:29.2]} 12. Rad1 {[%clk 0:04:15.4]}
12... Qe7 {[%clk 0:04:26.7]} 13. Be3 {[%clk 0:04:12.1]} 13... Rb8 {[%clk
0:04:21.1]} 14. Rd2 {[%clk 0:03:14.8]} 14... Be6 {[%clk 0:04:18.5]} 15. Qa4
{[%clk 0:03:13.6]} 15... Rfd8 {[%clk 0:04:11.8]} 16. Rfd1 {[%clk 0:03:10.7]}
16... Rxd2 {[%clk 0:04:09.7]} 17. Rxd2 {[%clk 0:03:09.5]} 17... Rd8 {[%clk
0:04:07.4]} 18. Qb5 {[%clk 0:02:42.9]} 18... Rxd2 {[%clk 0:04:02.9]} 19. Nxd2
{[%clk 0:02:39.3]} 19... Nd8 {[%clk 0:03:49]} 20. Bxb7 {[%clk 0:02:31.9]} 20...
Nxb7 {[%clk 0:03:45.5]} 21. Qxb7 {[%clk 0:02:29.7]} 21... a5 {[%clk 0:03:39.8]}
22. Qa8+ {[%clk 0:02:25.8]} 22... Bf8 {[%clk 0:03:37.3]} 23. Bh6 {[%clk
0:02:11.6]} 23... Kg8 {[%clk 0:03:34.5]} 24. Bxf8 {[%clk 0:02:05.1]} 24... Qxf8
{[%clk 0:03:33.1]} 25. Qxa5 {[%clk 0:02:02.9]} 25... Qd6 {[%clk 0:03:30.2]} 26.
c4 {[%clk 0:01:43.1]} 26... Qd4 {[%clk 0:03:25]} 27. Qc3 {[%clk 0:01:34.1]}
27... Qc5 {[%clk 0:03:15.3]} 28. b4 {[%clk 0:01:29.1]} 28... Qc6 {[%clk
0:03:13.1]} 29. a3 {[%clk 0:01:21.6]} 29... Bh3 {[%clk 0:03:11.5]} 30. Qf3
{[%clk 0:01:13.6]} 30... Qd6 {[%clk 0:03:07.6]} 31. Qd5+ {[%clk 0:01:11.3]}
31... Qxd5 {[%clk 0:03:05.4]} 32. cxd5 {[%clk 0:01:09.9]} 32... Kf7 {[%clk
0:03:05.2]} 33. e4 {[%clk 0:01:08.2]} 33... Ke7 {[%clk 0:03:04]} 34. f3 {[%clk
0:01:04.1]} 34... Kd6 {[%clk 0:03:02.4]} 35. Kf2 {[%clk 0:01:03.2]} 35... f5
{[%clk 0:02:57.4]} 36. Ke3 {[%clk 0:01:01.5]} 36... c6 {[%clk 0:02:54.4]} 37.
Nc4+ {[%clk 0:00:58.8]} 37... Kc7 {[%clk 0:02:51.7]} 38. dxc6 {[%clk 0:00:52.5]}
38... f4+ {[%clk 0:02:41.1]} 39. gxf4 {[%clk 0:00:49.1]} 39... exf4+ {[%clk
0:02:40.1]} 40. Kxf4 {[%clk 0:00:47.5]} 40... Kxc6 {[%clk 0:02:39.4]} 41. a4
{[%clk 0:00:23.6]} 41... Bf1 {[%clk 0:02:33.6]} 42. Ne5+ {[%clk 0:00:19.4]}
42... Kd6 {[%clk 0:02:32.3]} 43. b5 {[%clk 0:00:15.6]} 43... Kc5 {[%clk
0:02:29.4]} 44. Nd7+ {[%clk 0:00:09.3]} 44... Kd6 {[%clk 0:02:23.1]} 45. Nf6
{[%clk 0:00:07.6]} 45... h5 {[%clk 0:02:21.3]} 46. e5+ {[%clk 0:00:03.9]} 46...
Ke6 {[%clk 0:02:19.2]} 47. Nh7 {[%clk 0:00:02.4]} 47... Bc4 {[%clk 0:02:17]} 48.
Ng5+ {[%clk 0:00:01.6]} 48... Ke7 {[%clk 0:02:15.8]} 49. e6 {[%clk 0:00:00.6]}
49... Bb3 {[%clk 0:02:13.7]} 0-1